Cogmind - Beta 12 --- EXPLORER MODE // 2023.10.05 @ 22:27:12 Player: Analote Result: Core destroyed Performance ------------- Evolutions (5) 2500 Regions Visited (15) 3000 Robots Destroyed (119) 595 Value Destroyed (5974) 5974 Prototype IDs (11) 220 Alien Tech Used (0) 0 Bonus (1545) 1545 TOTAL SCORE: 13834 Bonus ------- High Alert Combat Kills 225 Follower Combat Kills 467 Entered Garrisons 400 Used RIF Installer 500 Friendly Fire -47 Cogmind --------- Core Integrity 0/1000 Matter 36/300 Energy 192/600 System Corruption 3% Temperature Critical (1972) Movement Immobile (Siege) Ox1 Location -5/Cetus Parts ------- > --- POWER (2) -------- Quantum Reactor Quantum Reactor > --- PROPULSION (5) --- Centrium Heavy Treads > --- UTILITY (7) ------ Large Storage Unit Centrium Medium Armor Plating > --- WEAPON (4) ------- Advanced Variable Charge Gun Advanced Variable Charge Gun Advanced KE Penetrator > --- INVENTORY (15) --- Micro Fission Core Airjet Antigrav System Combat Gravmag System Improved Heat Sink Improved Light Armor Plating Remote Datajack Improved Remote Datajack Peak State ------------ > --- POWER ------------ Quantum Reactor Quantum Reactor > --- PROPULSION ------- Light Treads Centrium Heavy Treads > --- UTILITY ---------- Large Storage Unit Targeting Computer Centrium Medium Armor Plating Centrium Medium Armor Plating Relay Coupler [Grunt] > --- WEAPON ----------- Advanced Variable Charge Gun Advanced Variable Charge Gun Advanced KE Penetrator Advanced KE Penetrator > --- INVENTORY -------- Micro Fission Core Airjet Antigrav System Combat Gravmag System Improved Heat Sink Improved Light Armor Plating Remote Datajack Improved Remote Datajack [Rating: 95] Favorites ----------- Power Light Nuclear Core Engine Light Angular Momentum Engine Power Core Light Nuclear Core Reactor Light Antimatter Reactor Propulsion Improved Hover Unit Treads Light Treads Leg Aluminum Leg Hover Unit Improved Hover Unit Utility Medium Storage Unit Device Advanced Heat Sink Storage Medium Storage Unit Processor Targeting Computer Hackware Hacking Suite Protection Power Shielding Weapon Minigun Energy Gun Cooled Pulse Rifle Energy Cannon Light EM Pulse Cannon Ballistic Gun Minigun Ballistic Cannon Improved Light Cannon Special Weapon Remote Datajack Build | -11 -10 -9 -8 -7 -7 -7 -7 -6 -6 -6 -6 -6 -5 -5 -5 ------- Run | Jun Mat Mat Mat Fac Was Fac Gar Fac Was Fac Gar Fac Fac Ext Cet Slots Evolved 11 | . 1 2 2 2 . . . 2 . . . . 2 . . Power 1 | . . . 1 . . . . . . . . . . . . Propulsion 3 | . . 2 . . . . . . . . . . 1 . . Utility 5 | . 1 . . 2 . . . 1 . . . . 1 . . Weapon 2 | . . . 1 . . . . 1 . . . . . . . Parts Attached 126 | 7 3 6 11 9 1 4 14 5 1 12 17 12 6 7 11 Power 17 | 1 . . 3 . . . 3 . . 2 3 2 . 1 2 Engine 9 | 1 . . 2 . . . 1 . . 2 1 1 . 1 . Core 5 | . . . 1 . . . 1 . . . 2 1 . . . Reactor 3 | . . . . . . . 1 . . . . . . . 2 Propulsion 35 | 2 2 2 4 2 1 3 4 2 1 2 2 1 5 . 2 Treads 2 | . . . . . . . . . . . . . . . 2 Leg 2 | 2 . . . . . . . . . . . . . . . Wheel . | . . . . . . . . . . . . . . . . Hover 31 | . 2 2 4 2 1 3 4 2 1 2 2 1 5 . . Flight . | . . . . . . . . . . . . . . . . Utility 29 | 2 1 . . 3 . . 4 1 . 6 5 4 . 1 2 Device 12 | . . . . 1 . . 1 1 . 6 2 . . 1 . Storage 2 | 1 . . . . . . . . . . . 1 . . . Processor 1 | . . . . . . . . . . . 1 . . . . Hackware 6 | . . . . 1 . . 2 . . . 2 1 . . . Protection 8 | 1 1 . . 1 . . 1 . . . . 2 . . 2 Artifact . | . . . . . . . . . . . . . . . . Weapon 45 | 2 . 4 4 4 . 1 3 2 . 2 7 5 1 5 5 Energy Gun 15 | 1 . . . 1 . 1 1 . . 1 4 2 . 2 2 Energy Cannon 3 | . . . . 1 . . . . . . . 1 . 1 . Ballistic Gun 18 | 1 . 2 4 1 . . 1 1 . 1 2 1 . 1 3 Ballistic Cannon 4 | . . 2 . 1 . . . 1 . . . . . . . Launcher . | . . . . . . . . . . . . . . . . Special Weapon 5 | . . . . . . . 1 . . . 1 1 1 1 . Impact Weapon . | . . . . . . . . . . . . . . . . Slashing Weapon . | . . . . . . . . . . . . . . . . Piercing Weapon . | . . . . . . . . . . . . . . . . Special Melee Weapon . | . . . . . . . . . . . . . . . . Unidentified Prototypes 11 | . . . . 1 . 1 . 1 . 1 . 2 . 1 4 Corrupted Parts 1 | . . . . . . . . . . . . . . . 1 System Corruption 2 | . . . . . . . . . . . . . . . 2 Parts Lost 56 | . . . 2 2 . 1 7 2 1 1 13 7 . 7 13 Power 11 | . . . . . . . 3 . 1 1 2 2 . 1 1 Propulsion 15 | . . . 1 2 . . 4 1 . . 2 1 . 1 3 Utility 15 | . . . 1 . . 1 . 1 . . 4 2 . 1 5 Weapon 15 | . . . . . . . . . . . 5 2 . 4 4 Highest Loss Streak 12 | . . . 1 1 . 1 3 2 1 1 12 5 . 6 8 To Critical Strikes 1 | . . . . . . . . . . . 1 . . . . Average Slot Usage (%) 87 | . 98 99 87 91 98 98 88 85 82 87 84 87 90 83 56 Engine 6 | . 12 10 9 7 7 7 5 6 6 11 7 1 5 8 . Core 3 | . . . 5 7 7 7 5 . . . 3 9 4 . . Leg 1 | . 18 . . . . . . . . . . . . . . Hover 19 | . 5 40 25 25 26 28 20 17 14 18 17 16 24 24 8 Device 8 | . . . . 4 7 7 7 7 12 19 17 10 5 4 . Storage 6 | . 12 10 8 7 7 7 7 6 6 6 6 4 5 5 5 Processor 1 | . . . . . . . . . . . 2 6 5 5 4 Hackware 8 | . . . . 4 7 7 11 16 12 6 6 13 16 13 6 Protection 6 | . 25 20 13 13 14 12 9 . . . . . . . 2 Energy Gun 6 | . 12 7 . . . 4 4 6 6 6 7 14 11 8 6 Ballistic Gun 7 | . 12 9 24 19 7 2 3 5 6 6 7 2 5 2 8 Ballistic Cannon 2 | . . 2 . . 7 7 5 5 6 6 1 . . . . Special Weapon 3 | . . . . . . . 3 6 6 6 4 5 5 6 1 Naked Turns . | . . . . . . . . . . . . . . . . Heaviest Build 91 | 21 22 27 35 39 39 40 43 45 45 51 51 51 50 57 91 Greatest Support 100 | 20 20 28 29 31 31 31 39 41 36 44 44 40 54 54 100 Greatest Overweight (x) 25 | 2 7 . 2 2 1 1 2 1 1 1 1 3 3 1 25 Average Overweight (x) . | . 1 . . 1 1 1 1 1 . . . . . . 1 Largest Inventory Capacity 15 | 10 10 10 10 10 10 10 10 10 10 10 10 15 15 15 15 Average Capacity 10 | 8 10 10 10 10 10 10 10 10 10 10 10 9 15 15 15 Most Carried 10 | 3 4 10 10 9 8 10 10 10 10 10 9 8 7 8 10 Average Carried 6 | . 1 2 7 7 7 8 9 8 9 9 6 5 5 6 7 Final Capacity 15 | 10 10 10 10 10 10 10 10 10 10 10 10 15 15 15 15 Final Carried 10 | 1 4 5 7 7 7 9 10 9 9 9 8 4 7 8 8 Class Distribution -------------------- 29% | Hacker-Tank 27% | Hacker-Mutant 17% | Hacker-Gunner 11% | Hacker-Skirmisher 7% | Scavenger-Gunner 6% | Scavenger-Mutant Dominant Class ---------------- Hacker-Mutant | -10/Materials Hacker-Mutant | -9/Materials Hacker-Tank | -8/Materials Hacker-Tank | -7/Factory Hacker-Tank | -7/Waste Hacker-Tank | -7/Factory Hacker-Mutant | -7/Garrison Hacker-Gunner | -6/Factory Hacker-Skirmisher | -6/Waste Hacker-Skirmisher | -6/Factory Scavenger-Gunner | -6/Garrison Scavenger-Gunner | -6/Factory Hacker-Gunner | -5/Factory Hacker-Gunner | -5/Extension Scavenger-Mutant | -5/Cetus Resources | -11 -10 -9 -8 -7 -7 -7 -7 -6 -6 -6 -6 -6 -5 -5 -5 ----------- Run | Jun Mat Mat Mat Fac Was Fac Gar Fac Was Fac Gar Fac Fac Ext Cet Matter Collected 3639 | 65 145 234 254 461 137 157 390 180 126 363 686 105 55 132 149 Remotely . | . . . . . . . . . . . . . . . . Salvage Created 5237 | . 210 182 376 721 . 212 799 273 . 409 677 416 79 290 593 Parts 258 | . 13 7 30 40 . 5 37 14 . 11 42 23 4 13 19 Haulers Intercepted . | . . . . . . . . . . . . . . . . Recyclers Shooed . | . . . . . . . . . . . . . . . . Parts Field Recycled . | . . . . . . . . . . . . . . . . Retrieved Matter . | . . . . . . . . . . . . . . . . Parts Self-Destructed . | . . . . . . . . . . . . . . . . Prevented . | . . . . . . . . . . . . . . . . Kills | -11 -10 -9 -8 -7 -7 -7 -7 -6 -6 -6 -6 -6 -5 -5 -5 ------- Run | Jun Mat Mat Mat Fac Was Fac Gar Fac Was Fac Gar Fac Fac Ext Cet Combat Hostiles Destroyed 102 | . 5 5 8 16 . 4 20 5 . 8 14 4 2 3 8 Guns 75 | . 5 5 8 16 . . 7 3 . 5 11 3 2 2 8 Cannons 21 | . . . . . . 4 10 2 . 3 2 . . . . AOE 3 | . . . . . . . 3 . . . . . . . . Classes Destroyed 12 | . 3 1 3 1 . . 2 . . . . 1 . 1 . Worker 2 | . . . 1 . . . . . . . . 1 . . . Recycler 1 | . . . . . . . . . . . . 1 . . . Operator 3 | . . . 1 1 . . . 1 . . . . . . . Watcher 11 | . 2 1 1 . . . . 1 . . . 2 1 2 1 Swarmer 17 | . 2 3 2 6 . . . . . . 2 . 2 . . Grunt 49 | . 3 . 3 7 . 3 12 4 . 6 7 . . . 4 Brawler 1 | . . . . . . . 1 . . . . . . . . Duelist 2 | . . . 2 . . . . . . . . . . . . Sentry 15 | . . 2 1 2 . 1 3 . . 2 2 1 . 1 . Specialist 2 | . . . . . . . 2 . . . . . . . . Hunter 2 | . . . . . . . . . . . . . . 2 . Programmer 10 | . . . . 1 . . 2 1 . . 3 3 . . . Cetus Guard 4 | . . . . . . . . . . . . . . . 4 Best Kill Streak 7 | . 4 4 7 6 . 4 5 5 . 2 4 2 1 1 5 Combat Bots Only 6 | . 3 3 4 6 . 4 5 4 . 2 4 2 1 1 4 Max Kills in Single Turn 2 | . 1 2 2 1 . 1 2 1 . 1 1 1 1 1 1 Gunslinging 1 | . . 1 . . . . . . . . . . . . . Exploded 2 | . . . . . . . 2 . . . . . . . . Melee . | . . . . . . . . . . . . . . . . Uniques/NPCs Destroyed . | . . . . . . . . . . . . . . . . Combat | -11 -10 -9 -8 -7 -7 -7 -7 -6 -6 -6 -6 -6 -5 -5 -5 -------- Run | Jun Mat Mat Mat Fac Was Fac Gar Fac Was Fac Gar Fac Fac Ext Cet Damage Taken 7901 | . 193 151 49 522 . 132 850 208 22 142 1308 518 163 606 3037 Core 1703 | . 12 . . 39 . 21 85 11 22 6 410 53 9 102 933 Absorbed by Shields . | . . . . . . . . . . . . . . . . Reduced by Siege Mode 93 | . . . . . . . . . . . . . . . 93 Redirected to Shielding 28 | . 2 . . 13 . . 13 . . . . . . . . Regen/Repaired (Parts) 240 | . . . . . . . . 79 . . . 161 . . . Core Remaining (%) 85 | 100 95 100 100 . . . 79 . . . . 40 . . . Volleys Fired 412 | . 30 19 18 40 . 11 67 13 . 26 76 37 9 20 46 Largest 4 | . 2 2 3 3 . 3 3 3 . 3 3 3 3 3 4 Hottest 550 | . 60 60 75 75 . 115 115 152 . 152 201 153 100 156 550 Shots Fired 954 | . 54 31 54 120 . 27 152 37 . 65 167 75 24 47 101 Gun 771 | . 54 31 54 120 . 5 61 24 . 39 147 72 23 43 98 Cannon 171 | . . . . . . 22 88 12 . 24 19 . . 3 3 Launcher . | . . . . . . . . . . . . . . . . Special 12 | . . . . . . . 3 1 . 2 1 3 1 1 . Kinetic 573 | . 30 19 54 120 . 11 83 24 . 42 102 2 8 9 69 Thermal 229 | . 24 12 . . . 5 41 12 . 21 50 16 7 12 29 Explosive . | . . . . . . . . . . . . . . . . Electromagnetic 140 | . . . . . . 11 25 . . . 14 54 8 25 3 Robot Hit Streak 75 | . 22 29 18 25 . 28 75 10 . 26 32 35 36 15 41 Robot Miss Streak 5 | . 1 3 5 3 . . 1 3 . 2 1 1 3 1 3 Penetration Max 1 | . . . . . . . . . . . . . . . 1 Secondary Targets 13 | . . 1 1 6 . . . . . . 2 . 1 . 2 Max Gunslinging Chain 1 | . . 1 1 1 . . . . . . 1 . 1 . 1 Shots Hit Robots 727 | . 48 25 32 95 . 25 111 26 . 52 97 69 18 40 89 Core Hits 282 | . 14 8 17 37 . 10 50 15 . 24 38 18 7 13 31 Critical Kills 3 | . . . . . . . . . . 1 1 . . . 1 Critical Parts Destroyed 9 | . . . . 1 . . 1 . . 1 2 . . . 4 Critical Strikes 23 | . . . . 1 . 1 3 . . 4 3 1 1 4 5 Burn 6 | . . . . . . . 2 . . . . 1 1 2 . Destroy 12 | . . . . 1 . . 1 . . 2 3 . . . 5 Blast 2 | . . . . . . . . . . 2 . . . . . Corrupt 3 | . . . . . . 1 . . . . . . . 2 . Melee Attacks . | . . . . . . . . . . . . . . . . Impact . | . . . . . . . . . . . . . . . . Slashing . | . . . . . . . . . . . . . . . . Piercing . | . . . . . . . . . . . . . . . . Sneak Attacks . | . . . . . . . . . . . . . . . . Combat Hostiles . | . . . . . . . . . . . . . . . . Follow-up Attacks . | . . . . . . . . . . . . . . . . Damage Inflicted 14635 | . 551 296 557 1663 . 515 2436 640 . 1198 2217 1078 315 775 2394 Guns 11711 | . 551 296 557 1663 . 94 997 442 . 840 1947 1022 315 681 2306 Cannons 2601 | . . . . . . 421 1265 198 . 358 177 . . 94 88 Explosions 323 | . . . . . . . 174 . . . 93 56 . . . Melee . | . . . . . . . . . . . . . . . . Ramming . | . . . . . . . . . . . . . . . . Kinetic 8088 | . 286 195 557 1663 . 191 1270 391 . 739 1067 30 89 128 1482 Thermal 4447 | . 265 101 . . . 94 812 249 . 459 930 375 91 247 824 Explosive . | . . . . . . . . . . . . . . . . Electromagnetic 2100 | . . . . . . 230 354 . . . 220 673 135 400 88 Impact . | . . . . . . . . . . . . . . . . Slashing . | . . . . . . . . . . . . . . . . Piercing . | . . . . . . . . . . . . . . . . Highest Corruption 6 | . . . . 1 1 1 2 1 1 1 2 6 . 1 3 Average Corruption 1 | . . . . 1 1 1 1 1 1 1 1 3 . 1 1 Corruption Purged . | . . . . . . . . . . . . . . . . Corruption Blocked . | . . . . . . . . . . . . . . . . Effects 39 | . . . . . 1 1 10 . 1 5 2 16 . . 3 Message Errors 11 | . . . . . . . 3 . . . 2 5 . . 1 Matter Fused 14 | . . . . . . 1 5 . 1 2 . 3 . . 2 Heat Flow Errors 2 | . . . . . 1 . . . . 1 . . . . . Energy Discharges 4 | . . . . . . . . . . 1 . 3 . . . Data Loss (minor) 2 | . . . . . . . . . . . . 2 . . . Data Loss (major) 2 | . . . . . . . 1 . . . . 1 . . . Misfires 2 | . . . . . . . 1 . . . . 1 . . . Alerts 1 | . . . . . . . . . . 1 . . . . . Weapon Failures 1 | . . . . . . . . . . . . 1 . . . Overload Shots 5 | . . . . . . . . . . . . . . . 5 Overflow Damage 49 | . . . . . . . 12 . . . . 34 . 3 . Projectiles 15 | . . . . . . . 12 . . . . . . 3 . Explosions 34 | . . . . . . . . . . . . 34 . . . Melee . | . . . . . . . . . . . . . . . . Knockbacks 13 | . . . . . . 1 7 2 . 3 . . . . . Impact . | . . . . . . . . . . . . . . . . Kinetic 11 | . . . . . . 1 6 2 . 2 . . . . . Secondary 2 | . . . . . . . 1 . . 1 . . . . . Self-Inflicted Damage . | . . . . . . . . . . . . . . . . Shots . | . . . . . . . . . . . . . . . . Rammed . | . . . . . . . . . . . . . . . . Targets Rammed . | . . . . . . . . . . . . . . . . Kicked . | . . . . . . . . . . . . . . . . Crushed . | . . . . . . . . . . . . . . . . Highest Temperature 1972 | . 270 201 376 175 144 132 33 568 . 645 993 125 2 198 1972 Average Temperature 212 | . 107 81 126 30 86 60 10 284 . 274 442 46 2 47 759 Received Heat Transfer 2593 | . 153 99 36 225 . 81 486 166 . 60 618 81 18 60 510 Effects 78 | . 2 . 4 . . . . 5 . 8 21 . . . 38 Shutdowns 9 | . . . . . . . . . . . 1 . . . 8 Energy Bleed 10 | . . . . . . . . 1 . 2 2 . . . 5 Interference 13 | . 2 . 3 . . . . . . 4 4 . . . . Matter Decay 9 | . . . . . . . . 2 . . 3 . . . 4 Short Circuit 4 | . . . 1 . . . . . . . . . . . 3 Damage (minor) 9 | . . . . . . . . 2 . 1 4 . . . 2 Damage (major) 16 | . . . . . . . . . . 1 5 . . . 10 Damage (core) 8 | . . . . . . . . . . . 2 . . . 6 Siege Activations 1 | . . . . . . . . . . . . . . . 1 Total Turns 42 | . . . . . . . . . . . . . . . 42 Longest Duration 42 | . . . . . . . . . . . . . . . 42 Robots Corrupted 2 | . . . . . . . . . . . 1 1 . . . Combat Hostiles 2 | . . . . . . . . . . . 1 1 . . . Parts Fried 8 | . . . . . . 1 . . . . 3 2 1 1 . Impact Corruptions . | . . . . . . . . . . . . . . . . Robots Melted 1 | . . . . . . . . . . . . . . 1 . Combat Hostiles 1 | . . . . . . . . . . . . . . 1 . Parts Melted 12 | . 1 1 . . . . 2 . . . . 2 . 6 . Heat Transferred 7179 | . 600 225 . . . 185 1423 333 . 629 1227 679 259 592 1027 Parts Sabotaged . | . . . . . . . . . . . . . . . . Parts Stolen . | . . . . . . . . . . . . . . . . Parts Stripped . | . . . . . . . . . . . . . . . . Power Chain Reactions 5 | . . . . . . . 3 . . . 1 1 . . . Missiles Intercepted . | . . . . . . . . . . . . . . . . Alert | -11 -10 -9 -8 -7 -7 -7 -7 -6 -6 -6 -6 -6 -5 -5 -5 ------- Run | Jun Mat Mat Mat Fac Was Fac Gar Fac Was Fac Gar Fac Fac Ext Cet Peak Influence 757 | . 152 167 278 291 66 140 757 475 57 222 423 264 130 151 99 Initial 295 | . . . 50 91 56 35 75 295 42 9 119 164 6 39 46 Average 177 | . 102 96 201 157 55 62 467 341 34 78 287 120 55 86 38 Maximum Alert Level 3 | . . . 1 1 . . 3 2 . 1 2 1 . . . Low Security (%) 65 | 100 100 100 29 61 100 100 11 2 100 91 16 83 100 100 100 Level 1 25 | . . . 70 38 . . 28 77 . 8 70 16 . . . Level 2 6 | . . . . . . . 32 19 . . 12 . . . . Level 3 3 | . . . . . . . 28 . . . . . . . . Level 4 . | . . . . . . . . . . . . . . . . Level 5 . | . . . . . . . . . . . . . . . . High Security . | . . . . . . . . . . . . . . . . Max Security . | . . . . . . . . . . . . . . . . Squads Dispatched 9 | . . . . 1 . 1 . . . 3 . 2 1 1 . Investigation 6 | . . . . 1 . . . . . 2 . 1 1 1 . Extermination 1 | . . . . . . . . . . . . 1 . . . Reinforcement . | . . . . . . . . . . . . . . . . Assault . | . . . . . . . . . . . . . . . . Garrison 2 | . . . . . . 1 . . . 1 . . . . . Intercept . | . . . . . . . . . . . . . . . . Searches Triggered . | . . . . . . . . . . . . . . . . Construction Impeded . | . . . . . . . . . . . . . . . . Haulers Reinforced . | . . . . . . . . . . . . . . . . Active Scanning Responses . | . . . . . . . . . . . . . . . . Cargo Convoy Interrupts . | . . . . . . . . . . . . . . . . Stealth | -11 -10 -9 -8 -7 -7 -7 -7 -6 -6 -6 -6 -6 -5 -5 -5 --------- Run | Jun Mat Mat Mat Fac Was Fac Gar Fac Was Fac Gar Fac Fac Ext Cet Distress Signals 8 | . 1 . 2 . . . . 1 . 1 . . . 2 1 Communications Jammed . | . . . . . . . . . . . . . . . . Distress Signals . | . . . . . . . . . . . . . . . . Times Spotted 166 | . 9 5 10 18 6 4 26 10 4 15 19 10 6 13 11 Peak Tracking Total 7 | . 4 3 4 4 6 3 7 6 4 3 6 3 4 7 6 Tactical Retreats 11 | . . . . . . . 2 . . 1 1 1 1 5 . Traps | -11 -10 -9 -8 -7 -7 -7 -7 -6 -6 -6 -6 -6 -5 -5 -5 ------- Run | Jun Mat Mat Mat Fac Was Fac Gar Fac Was Fac Gar Fac Fac Ext Cet Traps Triggered 16 | . . . 2 3 . . 2 1 . 1 2 . 2 3 . Indirectly . | . . . . . . . . . . . . . . . . Trap Hack Attempts . | . . . . . . . . . . . . . . . . Triggered . | . . . . . . . . . . . . . . . . Disarmed . | . . . . . . . . . . . . . . . . Reprogrammed . | . . . . . . . . . . . . . . . . Reused . | . . . . . . . . . . . . . . . . Traps Extracted . | . . . . . . . . . . . . . . . . Installed . | . . . . . . . . . . . . . . . . Triggered . | . . . . . . . . . . . . . . . . Machines | -11 -10 -9 -8 -7 -7 -7 -7 -6 -6 -6 -6 -6 -5 -5 -5 ---------- Run | Jun Mat Mat Mat Fac Was Fac Gar Fac Was Fac Gar Fac Fac Ext Cet Machines Disabled 4 | . . . . . . . 3 . . . . 1 . . . Max in Single Turn 1 | . . . . . . . 1 . . . . 1 . . . Garrison Access 1 | . . . . . . . . . . . . 1 . . . Garrison Relay 3 | . . . . . . . 3 . . . . . . . . Machines Repaired . | . . . . . . . . . . . . . . . . Machines Sabotaged . | . . . . . . . . . . . . . . . . Overloaded Fab Kills . | . . . . . . . . . . . . . . . . Hacking | -11 -10 -9 -8 -7 -7 -7 -7 -6 -6 -6 -6 -6 -5 -5 -5 --------- Run | Jun Mat Mat Mat Fac Was Fac Gar Fac Was Fac Gar Fac Fac Ext Cet Machines Accessed 26 | . 1 . . 2 . 1 2 3 . 6 2 4 3 2 . Terminals 14 | . 1 . . 2 . . 2 1 . 2 2 . 2 2 . Fabricators 5 | . . . . . . . . 1 . 2 . 2 . . . Repair Stations 4 | . . . . . . . . 1 . 1 . 1 1 . . Recycling Units . | . . . . . . . . . . . . . . . . Scanalyzers . | . . . . . . . . . . . . . . . . Garrison Access 3 | . . . . . . 1 . . . 1 . 1 . . . Total Hacks 45 | . 1 . . 2 . 2 2 6 . 11 3 9 7 2 . Successful 28 | . 1 . . 1 . 1 2 4 . 7 2 5 3 2 . Failed 17 | . . . . 1 . 1 . 2 . 4 1 4 4 . . Catastrophic 2 | . . . . 1 . . . . . . . . 1 . . Database Lockouts . | . . . . . . . . . . . . . . . . Manual 2 | . 1 . . 1 . . . . . . . . . . . Terminals 19 | . 1 . . 2 . . 2 1 . 3 3 . 5 2 . Fabricators 14 | . . . . . . . . 3 . 5 . 6 . . . Repair Stations 7 | . . . . . . . . 2 . 1 . 2 2 . . Recycling Units . | . . . . . . . . . . . . . . . . Scanalyzers . | . . . . . . . . . . . . . . . . Garrison Access 5 | . . . . . . 2 . . . 2 . 1 . . . Terminal Hacks 11 | . . . . 1 . . 2 . . 2 2 . 2 2 . Part Schematic 2 | . . . . . . . . . . 1 . . 1 . . Robot Analysis 2 | . . . . 1 . . . . . 1 . . . . . Open Door 3 | . . . . . . . . . . . . . 1 2 . Emergency Access Points 2 | . . . . . . . 1 . . . 1 . . . . Garrison Registry 1 | . . . . . . . 1 . . . . . . . . Security Stations 1 | . . . . . . . . . . . 1 . . . . Fabricator Hacks 7 | . . . . . . . . 2 . 3 . 2 . . . Network Status 1 | . . . . . . . . 1 . . . . . . . Load Schematic 2 | . . . . . . . . . . 1 . 1 . . . Build 4 | . . . . . . . . 1 . 2 . 1 . . . Repair Station Hacks 5 | . . . . . . . . 2 . . . 2 1 . . Scan Component 3 | . . . . . . . . 1 . . . 1 1 . . Repair 2 | . . . . . . . . 1 . . . 1 . . . Recycling Unit Hacks . | . . . . . . . . . . . . . . . . Scanalyzer . | . . . . . . . . . . . . . . . . Garrison Access Hacks 4 | . . . . . . 1 . . . 2 . 1 . . . Unlock Access 2 | . . . . . . 1 . . . 1 . . . . . Seal Access 1 | . . . . . . . . . . . . 1 . . . Coupler Status 1 | . . . . . . . . . . 1 . . . . . Unauthorized Hacks 1 | . 1 . . . . . . . . . . . . . . Terminals 1 | . 1 . . . . . . . . . . . . . . Botnet 1 | . 1 . . . . . . . . . . . . . . Fabricators . | . . . . . . . . . . . . . . . . Repair Stations . | . . . . . . . . . . . . . . . . Recycling Units . | . . . . . . . . . . . . . . . . Scanalyzers . | . . . . . . . . . . . . . . . . Garrison Access . | . . . . . . . . . . . . . . . . Data Cores Recovered 1 | . . . . 1 . . . . . . . . . . . Used 1 | . . . . 1 . . . . . . . . . . . Hacking Detections 18 | . . . . 2 . 1 2 2 . 4 2 3 1 1 . Full Trace Events 2 | . . . . . . . . . . 1 . 1 . . . Feedback Events 1 | . . . . . . . . . . . . 1 . . . Corruption 1 | . . . . . . . . . . . . 1 . . . Feedback Blocked . | . . . . . . . . . . . . . . . . Robot Schematics Acquired . | . . . . . . . . . . . . . . . . Robots Built 7 | . . . . . . . . 1 . 3 . 3 . . . Authchips . | . . . . . . . . . . . . . . . . Time 232 | . . . . . . . . 40 . 76 . 116 . . . Total Robot Build Rating 25 | . . . . . . . . 1 . 15 . 9 . . . Part Schematics Acquired 2 | . . . . . . . . . . 1 . . 1 . . Parts Built 2 | . . . . . . . . . . 2 . . . . . Authchips . | . . . . . . . . . . . . . . . . Time 39 | . . . . . . . . . . 39 . . . . . Total Part Build Rating 14 | . . . . . . . . . . 14 . . . . . Parts Repaired 2 | . . . . . . . . 1 . . . 1 . . . Time 57 | . . . . . . . . 38 . . . 19 . . . Parts Recycled . | . . . . . . . . . . . . . . . . Recycled Matter . | . . . . . . . . . . . . . . . . Retrieved Matter . | . . . . . . . . . . . . . . . . Retrieved Components . | . . . . . . . . . . . . . . . . Parts Scanalyzed . | . . . . . . . . . . . . . . . . Part Schematics Acquired . | . . . . . . . . . . . . . . . . Parts Damaged . | . . . . . . . . . . . . . . . . Bothacking | -11 -10 -9 -8 -7 -7 -7 -7 -6 -6 -6 -6 -6 -5 -5 -5 ------------ Run | Jun Mat Mat Mat Fac Was Fac Gar Fac Was Fac Gar Fac Fac Ext Cet Used RIF Installer 1 | . . . . . . . 1 . . . . . . . . Robots Hacked 10 | . . . . . . . 2 1 . 2 1 3 . 1 . Non-combat . | . . . . . . . . . . . . . . . . Combat 10 | . . . . . . . 2 1 . 2 1 3 . 1 . Robot Hacks Applied 10 | . . . . . . . 2 1 . 2 1 3 . 1 . find_shortcuts 1 | . . . . . . . . . . 1 . . . . . spike_heat 1 | . . . . . . . . . . . . . . 1 . streamctrl_high 1 | . . . . . . . 1 . . . . . . . . formatsys_high 7 | . . . . . . . 1 1 . 1 1 3 . . . Relay Couplers Released 18 | . . . . . . . 15 . . . . 3 . . . Machine Destruction 11 | . . . . . . . 11 . . . . . . . . Programmers 7 | . . . . . . . 4 . . . . 3 . . . Attached 5 | . . . . . . . 2 . . . 2 1 . . . Fabnet Peak Effective % . | . . . . . . . . . . . . . . . . Robots Rewired . | . . . . . . . . . . . . . . . . Allies Hacked . | . . . . . . . . . . . . . . . . Hacks Repelled . | . . . . . . . . . . . . . . . . Allies | -11 -10 -9 -8 -7 -7 -7 -7 -6 -6 -6 -6 -6 -5 -5 -5 -------- Run | Jun Mat Mat Mat Fac Was Fac Gar Fac Was Fac Gar Fac Fac Ext Cet Total Allies 20 | . . . . . 1 . 2 2 1 4 1 6 . 3 . Largest Group 4 | . . . . . 1 . 2 2 2 4 2 3 2 2 1 Highest-Rated Group 119 | . . . . . 31 . 60 38 36 119 70 76 76 51 20 Highest-Rated Ally 47 | . . . . . 31 . 30 32 30 32 41 47 47 31 20 Total Orders . | . . . . . . . . . . . . . . . . Ally Attacks 118 | . . . . . 10 . . . 2 50 24 22 6 4 . Total Damage 2168 | . . . . . 186 . . . 36 967 498 382 58 41 . Kills 14 | . . . . . . . . . . 8 4 1 1 . . Allies Corrupted . | . . . . . . . . . . . . . . . . Allies Melted . | . . . . . . . . . . . . . . . . Intel | -11 -10 -9 -8 -7 -7 -7 -7 -6 -6 -6 -6 -6 -5 -5 -5 ------- Run | Jun Mat Mat Mat Fac Was Fac Gar Fac Was Fac Gar Fac Fac Ext Cet Robot Analysis Total 2 | . . . . 1 . . . . . 1 . . . . . Derelict Logs Recovered . | . . . . . . . . . . . . . . . . Drone Launches 2 | . . . . . . . . . . 2 . . . . . Drone Recoveries 1 | . . . . . . . . . . 1 . . . . . Exploration | -11 -10 -9 -8 -7 -7 -7 -7 -6 -6 -6 -6 -6 -5 -5 -5 ------------- Run | Jun Mat Mat Mat Fac Was Fac Gar Fac Was Fac Gar Fac Fac Ext Cet Turns Passed 6108 | 58 428 130 288 632 95 174 703 410 58 755 566 743 226 613 229 Spaces Moved 4233 | 28 203 132 206 450 86 120 392 266 68 534 413 497 287 512 39 Core 11 | 5 5 . . . . . . . . . . . . . 1 Treads 9 | . . . . . . . . . . . . . . . 9 Legs 138 | 23 115 . . . . . . . . . . . . . . Wheels . | . . . . . . . . . . . . . . . . Hover 4075 | . 83 132 206 450 86 120 392 266 68 534 413 497 287 512 29 Flight . | . . . . . . . . . . . . . . . . Fastest Speed 47 | 50 116 48 48 108 108 108 48 104 48 48 48 48 47 47 121 Average Speed 98 | 159 164 48 105 111 108 108 114 105 81 87 78 105 57 85 177 Slowest Speed 1300 | 190 400 48 176 176 112 108 180 108 106 108 108 231 231 121 1300 Overloaded Moves . | . . . . . . . . . . . . . . . . Propulsion Burnouts . | . . . . . . . . . . . . . . . . Robots Hopped . | . . . . . . . . . . . . . . . . Cave-ins Triggered . | . . . . . . . . . . . . . . . . Exploration Rate (%) 30 | 4 44 16 32 16 73 4 48 7 72 18 42 22 10 66 20 Regions Visited 15 Branch Regions 2 Pre-discovered Areas . | . . . . . . . . . . . . . . . . Known Exits Taken 9 | 1 1 1 1 . . 1 . . . 1 . 1 1 1 . Unknown Exits Taken . | . . . . . . . . . . . . . . . . Scrap Searched . | . . . . . . . . . . . . . . . . Spaces Dug . | . . . . . . . . . . . . . . . . Terrain Destroyed 32 | . . . . . . . 15 . . . 12 2 . . 3 Melee . | . . . . . . . . . . . . . . . . Projectile 3 | . . . . . . . . . . . . . . . 3 AOE 29 | . . . . . . . 15 . . . 12 2 . . . Terrain Rammed . | . . . . . . . . . . . . . . . . Walls Destroyed . | . . . . . . . . . . . . . . . . Machines Disabled . | . . . . . . . . . . . . . . . . Actions | -11 -10 -9 -8 -7 -7 -7 -7 -6 -6 -6 -6 -6 -5 -5 -5 --------- Run | Jun Mat Mat Mat Fac Was Fac Gar Fac Was Fac Gar Fac Fac Ext Cet Total 5436 | 42 243 169 246 515 87 139 512 369 69 774 527 653 330 650 111 Wait 484 | . . . . 6 . . 6 78 . 181 9 99 12 93 . Move 4221 | 27 202 131 205 450 85 120 391 266 67 533 412 496 286 511 39 Hop . | . . . . . . . . . . . . . . . . Pick Up 120 | 8 6 7 11 7 1 3 14 4 1 13 13 7 6 8 11 Fast Attach . | . . . . . . . . . . . . . . . . Attach 99 | 7 3 5 9 6 1 . 10 4 1 9 14 10 3 6 11 Detach 3 | . . 2 . . . . 1 . . . . . . . . Swap 27 | . . 1 2 3 . 4 4 1 . 3 3 2 3 1 . Drop 36 | . 2 4 1 3 . 1 5 3 . 9 . 2 1 1 4 Fire 412 | . 30 19 18 40 . 11 67 13 . 26 76 37 9 20 46 Melee . | . . . . . . . . . . . . . . . . Ram . | . . . . . . . . . . . . . . . . Kick . | . . . . . . . . . . . . . . . . Crush . | . . . . . . . . . . . . . . . . Escape Stasis 33 | . . . . . . . 13 . . . . . 10 10 . Rewire 1 | . . . . . . . 1 . . . . . . . . Trap . | . . . . . . . . . . . . . . . . Miscellaneous . | . . . . . . . . . . . . . . . . Route ------- -11/Junkyard -10/Materials (discovered 2 exits: *Mat / *Min) -9/Materials -8/Materials -7/Factory -7/Waste -7/Factory -7/Garrison (discovered 4 exits: *Fac x3 / Fac) -6/Factory -6/Waste -6/Factory -6/Garrison -6/Factory -5/Factory (discovered 2 exits: *Upp / *Ext) -5/Extension (discovered 2 exits: *Fac / *Cet) -5/Cetus History --------- Turn | Location | Event 4 | -11/Junkyard | Identified exit to Materials 4 | -11/Junkyard | Discovered exit to Materials (range 16) 59 | -11/Junkyard | Entered Materials 59 | -10/Materials | Evolved 1 slot: Utility x1 168 | -10/Materials | Identified exit to Mines 168 | -10/Materials | Discovered exit to Mines (range 11) 308 | -10/Materials | Build established: Hacker-Mutant 478 | -10/Materials | Identified exit to Materials 478 | -10/Materials | Discovered exit to Materials (range 9) 487 | -10/Materials | Entered another Materials area 487 | -9/Materials | Evolved 2 slots: Propulsion x2 547 | -9/Materials | Identified exit to Materials 547 | -9/Materials | Discovered exit to Materials (range 16) 617 | -9/Materials | Entered another Materials area 617 | -8/Materials | Evolved 2 slots: Power x1, Weapon x1 864 | -8/Materials | Identified exit to Factory 864 | -8/Materials | Discovered exit to Factory (range 16) 901 | -8/Materials | Build established: Hacker-Tank 905 | -8/Materials | Entered Factory 905 | -7/Factory | Evolved 2 slots: Utility x2 1537 | -7/Factory | Sucked down chute 1537 | -7/Factory | Entered Waste 1538 | -7/Waste | Met a frightened Derelict 1552 | -7/Waste | Spotted C-40 Crusher 1564 | -7/Waste | Spotted C-40 Crusher 1579 | -7/Waste | Spotted C-40 Crusher 1581 | -7/Waste | Spotted C-40 Crusher 1610 | -7/Waste | Spotted C-40 Crusher 1619 | -7/Waste | Spotted C-40 Crusher 1622 | -7/Waste | Identified exit to Factory 1622 | -7/Waste | Discovered exit to Factory (range 10) 1632 | -7/Waste | Entered Factory 1752 | -7/Factory | Garrison activated, responded to threat 1806 | -7/Factory | Identified exit to Garrison 1806 | -7/Factory | Entered Garrison 1827 | -7/Garrison | Identified exit to Factory 1827 | -7/Garrison | Discovered exit to Factory (range 46) 1827 | -7/Garrison | Discovered exit to Factory (range 53) 1827 | -7/Garrison | Discovered exit to Factory (range 72) 1827 | -7/Garrison | Identified exit to Factory 1827 | -7/Garrison | Discovered exit to Factory (range 30) 1878 | -7/Garrison | Garrison Relay disabled 1936 | -7/Garrison | Installed Relay Interface Framework 2006 | -7/Garrison | Triggered checkpoint 2084 | -7/Garrison | Lost 3 parts (1p2n) 2135 | -7/Garrison | Lost 3 parts (1p2n) 2136 | -7/Garrison | Triggered checkpoint 2200 | -7/Garrison | Triggered checkpoint 2236 | -7/Garrison | Garrison Relay disabled 2286 | -7/Garrison | Triggered checkpoint 2344 | -7/Garrison | Triggered checkpoint 2447 | -7/Garrison | Build established: Hacker-Mutant 2471 | -7/Garrison | Garrison Relay disabled 2476 | -7/Garrison | Triggered checkpoint 2509 | -7/Garrison | Entered Factory 2509 | -6/Factory | Accompanied by 1 ally 2509 | -6/Factory | Evolved 2 slots: Utility x1, Weapon x1 2635 | -6/Factory | Repaired Hpw. Shotgun 2757 | -6/Factory | Fabricated K-01 Serf (x1) 2919 | -6/Factory | Sucked down chute 2919 | -6/Factory | Entered Waste 2919 | -6/Waste | Met up with 1 ally sucked down the chute earlier 2929 | -6/Waste | Spotted C-40 Crusher 2933 | -6/Waste | Spotted C-40 Crusher 2935 | -6/Waste | 1 allies followed down the chute 2954 | -6/Waste | Spotted C-40 Crusher 2960 | -6/Waste | Spotted C-40 Crusher 2963 | -6/Waste | Crushed by Compactor (1 part destroyed) 2964 | -6/Waste | Spotted C-40 Crusher 2969 | -6/Waste | Identified exit to Factory 2969 | -6/Waste | Discovered exit to Factory (range 16) 2977 | -6/Waste | Entered Factory 3065 | -6/Factory | Fabricated Imp. Antigrav System (x2) 3141 | -6/Factory | Build established: Hacker-Skirmisher 3271 | -6/Factory | Fabricated G-50 Soldier (x3) 3679 | -6/Factory | Garrison activated, responded to threat 3725 | -6/Factory | Identified exit to Garrison 3732 | -6/Factory | Entered Garrison 3732 | -6/Garrison | Accompanied by 2 allies 3760 | -6/Garrison | Triggered checkpoint 3884 | -6/Garrison | Triggered checkpoint 3884 | -6/Garrison | Triggered checkpoint 3965 | -6/Garrison | Core integrity fell below 50% 3991 | -6/Garrison | Lost 12 parts (2p2n3u5w) 4155 | -6/Garrison | Identified exit to Factory 4155 | -6/Garrison | Discovered exit to Factory (range 14) 4172 | -6/Garrison | Learned Factory security intel 4188 | -6/Garrison | Triggered checkpoint 4298 | -6/Garrison | Entered Factory 4385 | -6/Factory | Spotted B-75 Beast 4610 | -6/Factory | Fabricated G-47 Trooper (x3) 4837 | -6/Factory | Lost 5 parts (1p1n2u1w) 4875 | -6/Factory | Repaired Imp. Light Armor Plating 5015 | -6/Factory | Identified exit to Factory 5015 | -6/Factory | Discovered exit to Factory (range 13) 5041 | -6/Factory | Entered another Factory area 5041 | -5/Factory | Accompanied by 2 allies 5041 | -5/Factory | Evolved 2 slots: Propulsion x1, Utility x1 5251 | -5/Factory | Identified exit to Upper Caves 5251 | -5/Factory | Discovered exit to Upper Caves (range 7) 5266 | -5/Factory | Identified exit to Extension 5266 | -5/Factory | Discovered exit to Extension (range 5) 5267 | -5/Factory | Entered Extension 5304 | -5/Extension | Rescued a captive Derelict 5357 | -5/Extension | Build established: Hacker-Gunner 5506 | -5/Extension | Spotted B-75 Beast 5634 | -5/Extension | Spotted B-75 Beast 5674 | -5/Extension | Lost 6 parts (1p1n1u3w) 5683 | -5/Extension | Identified exit to Cetus 5683 | -5/Extension | Discovered exit to Cetus (range 16) 5684 | -5/Extension | Identified exit to Factory 5684 | -5/Extension | Discovered exit to Factory (range 14) 5785 | -5/Extension | Rescued a captive Derelict 5786 | -5/Extension | Rescued a captive Derelict 5880 | -5/Extension | Entered Cetus 5880 | -5/Cetus | Accompanied by 1 ally 5896 | -5/Cetus | Spotted Cetus Guard 5896 | -5/Cetus | Spotted Cetus Guard 5915 | -5/Cetus | Destroyed Cetus Guard 5916 | -5/Cetus | Spotted Cetus Guard 5918 | -5/Cetus | Destroyed Cetus Guard 5918 | -5/Cetus | Spotted Cetus Guard 5949 | -5/Cetus | Destroyed Cetus Guard 5977 | -5/Cetus | Destroyed Cetus Guard 5999 | -5/Cetus | Lost 8 parts (1p2n2u3w) 6086 | -5/Cetus | Core integrity fell below 50% 6092 | -5/Cetus | Core integrity fell below 20% 6110 | -5/Cetus | Core destroyed Last Messages --------------- 06100_ Destroyed Lgt. Angular Momentum Engine. 06101_ Overheating: Adv. Variable Charge Gun damaged (-38). 06101_ Overheating: Broken Lgt. Treads damaged (-22). 06101_ Penetrated by Slug. 06102_ Overheating: Centrium Medium Armor Plating damaged (-1). 06102_ Relay Coupler [Grunt] destroyed. 06104_ G-50 Soldier overheating. 06104_ Penetrated by Slug. 06104_ Centrium Medium Armor Plating destroyed. 06104_ Broken Lgt. Treads destroyed. 06105_ Adv. Variable Charge Gun broken. 06105_ Overheating: Short circuit. 06107_ Power failure, Quantum Reactor shutdown. 06108_ Penetrated by Slug. 06108_ G-50 Soldier destroyed. 06109_ Overheating: Lrg. Storage Unit damaged (-128). 06109_ Overheating: Centrium Heavy Treads damaged (-131). 06109_ Overheating: Quantum Reactor damaged (-10). 06110_ Overheating: Core damaged (-100). [Achievement: I Think I Know What's Going On] Map ----- +----------------------------------------------------+ | ?????????????????????????????????????????????????? | | ?????????????????????????????????????????????????? | | ?????????????????????????????????????????????????? | | ?????????????????????????????????????????????????? | | ?????????????????????????????????????????????????? | | ?????????????????????????????????????????????????? | | ?????????????????????????????????????????????????? | | ?????????????????????????????????????????????????? | | ?????????????????????????????????????????????????? | | ???????????????? ??????????????????????????????? | | ???????????????? #?????????????????????????????? | | ???????????????# #?????????????????????????????? | | ???????????????# #?????????????????????????????? | | ???????????????# #?????????????????????????????? | | ???????????????# #?????????????????????????????? | | ???????????????# #?????????????????????????????? | | ???????????????# #?????????????????????????????? | | ???????????????# #?????????????????????????????? | | ???????????????# #?????????????????????????????? | | ???????????????# #?????????????????????????????? | | ???????????????# #?????????????????????????????? | | ???????????????# ###??????##???????????????????? | | ?????#?##??##### # #??####;#????"" ?????????? | | ######"""###;;;# #;#### ;## ????????? | | / [ *=%% ; % ????????? | | %* [!@%!h ; ????????? | | [[! =%! [h%+% ????????? | | #####################%;## #;#" ????????? | | ????????????????????#########?????"" ?????????? | | ?????????????????????????????????????????????????? | | ?????????????????????????????????????????????????? | | ?????????????????????????????????????????????????? | | ?????????????????????????????????????????????????? | | ?????????????????????????????????????????????????? | | ?????????????????????????????????????????????????? | | ?????????????????????????????????????????????????? | | ?????????????????????????????????????????????????? | | ?????????????????????????????????????????????????? | | ?????????????????????????????????????????????????? | | ?????????????????????????????????????????????????? | | ?????????????????????????????????????????????????? | | ?????????????????????????????????????????????????? | | ?????????????????????????????????????????????????? | | ?????????????????????????????????????????????????? | | ?????????????????????????????????????????????????? | | ?????????????????????????????????????????????????? | | ?????????????????????????????????????????????????? | | ?????????????????????????????????????????????????? | | ?????????????????????????????????????????????????? | | ?????????????????????????????????????????????????? | +----------------------------------------------------+ Best States ------------- Heat Dissipation 70 Energy Generation 45 Energy Capacity 600 Matter Stores 300 Matter Capacity 300 Sight Range 16 Robot Scan Range 15 Terrain Scan Density 10 ECM Strength 2 Base Temperature (-) 200 Armor Coverage 900 Resistance: KI 55 Resistance: TH 35 Resistance: EX 35 Resistance: EM 50 Resistance: I 35 Resistance: S 35 Resistance: P 35 Power Shielding 33 Phase Shifting 5 Evasion (%) 60 Targeting Accuracy 5 Recoil Reduction 3 Energy Filtering 50 Offensive Hacking 30 Relay Coupler Types 3 Relay Coupler Value 87 Item Schematics ----------------- Imp. Antigrav System | -6/Factory | Hacked Hyp. Railgun | -5/Factory | Hacked Robot Schematics ------------------ None Fabricated ------------ K-01 Serf | x1 | -6/Factory | Preloaded Imp. Antigrav System | x2 | -6/Factory G-50 Soldier | x3 | -6/Factory | Preloaded G-47 Trooper | x3 | -6/Factory | Preloaded Alien Tech Used ----------------- None Achievements -------------- Assimilation Complete Below I Think I Know What's Going On Challenges ------------ None Game ------ Seed ShieldGuidedFlakker Manual? 0 Play Time 01:03:44 Cumulative 65.9 hours Start 2023.10.05 @ 21:22:38 End 2023.10.05 @ 22:27:12 Sessions 1 Manual Loads 0 Difficulty Explorer Special Mode None Game No. 95 Rogue 2 Adventurer 1 Explorer 92 Win Type - Total 0 Types 0/0/0/0/0/0/0/0/0 Lore% 50 Gallery% 56 Achievement% 55 Wizard Run 0 Options --------- ASCII 0 Keyboard 0 Movement Mouse Keybinds 0 Fullscreen 2 Font 18/SmallcapsGlow Map View 76x50 Tactical HUD 1 Map Filters NONE Filters NONE Steam 1 RUN: 14886127-8446-4989-8d0e-2317862e0334